bitfinex/quotes_SOLUSD_20250106
["timestamp","ask_amount","ask_price","bid_price","bid_amount"]
[1736188641756,8.77372425,219.74,219.66,8.1092]
[1736188641983,8.77372425,219.74,219.67,8.77372425]
[1736188642771,8.77372425,219.72,219.66,10.30922425]
[1736188642967,8.77372425,219.68,219.62,8.77372425]
[1736188643147,10.89372425,219.68,219.61,14.82062425]
[1736188643482,2.12,219.68,219.63,8.77372425]
[1736188646754,2.12,219.68,219.62,8.77372425]
[1736188646755,10.89372425,219.68,219.62,8.77372425]
[1736188646949,32.55060825,219.67,219.6,1.536]
[1736188647151,8.77372425,219.64,219.57,8.77372425]
[1736188647557,23.776884,219.67,219.58,8.77372425]
[1736188647883,8.77372425,219.66,219.59,8.77372425]
[1736188648350,8.77372425,219.65,219.59,8.77372425]
[1736188649548,8.77372425,219.65,219.58,8.77372425]
[1736188649753,8.77372425,219.64,219.57,8.77372425]
[1736188650570,8.77372425,219.65,219.58,8.77372425]
[1736188651070,8.77372425,219.64,219.57,8.77372425]
[1736188651391,8.77372425,219.63,219.53,11.3876]
[1736188651690,24.752784,219.67,219.53,11.3876]
[1736188651691,8.77372425,219.62,219.55,8.77372425]
[1736188651993,59.847681,219.67,219.55,8.77372425]
[1736188651994,8.77372425,219.61,219.55,8.77372425]
[1736188652199,2.12,219.6,219.55,8.77372425]
[1736188653596,2.12,219.6,219.56,8.77372425]
[1736188653818,2.12,219.6,219.57,8.77372425]
[1736188654766,2.12,219.6,219.59,8.77372425]
[1736188655488,33.52650825,219.67,219.59,8.77372425]
[1736188655795,2.12,219.62,219.6,8.77372425]
[1736188656896,2.12,219.62,219.59,8.77372425]
[1736188657196,2.12,219.62,219.58,8.77372425]
[1736188661330,2.12,219.62,219.59,8.77372425]
[1736188665623,2.12,219.62,219.58,8.77372425]
[1736188667424,2.12,219.62,219.59,8.77372425]
[1736188669720,2.12,219.62,219.6,8.77372425]
[1736188669924,2.12,219.62,219.59,8.77372425]
[1736188670433,2.12,219.62,219.6,8.77372425]
[1736188670599,2.12,219.64,219.61,8.77372425]
[1736188670800,2.12,219.65,219.63,8.77372425]
[1736188672430,2.12,219.66,219.63,8.77372425]
[1736188673405,2.12,219.66,219.61,8.77372425]
[1736188676841,2.12,219.66,219.63,8.77372425]
[1736188677127,2.12,219.66,219.57,11.3857]
[1736188677128,2.12,219.66,219.62,8.77372425]
[1736188678344,32.55060825,219.68,219.62,8.77372425]
[1736188678638,2.12,219.67,219.62,8.77372425]
[1736188680234,2.12,219.67,219.57,11.3857]
[1736188680418,10.89372425,219.67,219.61,8.77372425]
[1736188684745,2.12,219.67,219.63,8.77372425]
[1736188685244,2.12,219.67,219.62,8.77372425]
[1736188688650,2.12,219.67,219.63,8.77372425]
[1736188688815,2.12,219.67,219.62,8.77372425]
[1736188689644,0.9759,219.72,219.64,8.77372425]
[1736188689645,2.1,219.66,219.64,8.77372425]
[1736188690747,23.776884,219.7,219.64,8.77372425]
[1736188690954,2.1,219.69,219.64,8.77372425]
[1736188691317,2.1,219.68,219.62,8.77372425]
[1736188691524,8.77372425,219.67,219.6,20.0]
[1736188691744,8.77372425,219.67,219.61,8.77372425]
[1736188693018,2.1,219.68,219.61,8.77372425]
[1736188693218,10.87372425,219.68,219.61,8.77372425]
[1736188694325,2.1,219.68,219.62,8.77372425]
[1736188695344,10.87372425,219.68,219.6,8.77372425]
[1736188696241,8.77372425,219.67,219.6,8.77372425]
[1736188698050,10.87372425,219.68,219.6,8.77372425]
[1736188702360,2.1,219.68,219.62,8.77372425]
[1736188703465,2.1,219.68,219.6,11.3843]
[1736188703632,2.1,219.68,219.61,8.77372425]
[1736188704660,8.77372425,219.63,219.57,1.64]
[1736188704954,23.776884,219.63,219.57,8.77372425]
[1736188705160,23.776884,219.67,219.54,8.77372425]
[1736188705161,8.77372425,219.61,219.54,8.77372425]
[1736188705328,2.1,219.6,219.55,8.77372425]
[1736188705537,2.1,219.6,219.56,8.77372425]
[1736188705829,2.1,219.6,219.57,8.77372425]
[1736188707422,2.1,219.6,219.58,8.77372425]
[1736188708876,2.1,219.6,219.57,8.77372425]
[1736188709260,2.1,219.6,219.58,8.77372425]
[1736188710560,2.1,219.6,219.59,8.77372425]
[1736188713464,2.1,219.64,219.59,8.77372425]
[1736188713670,2.1,219.64,219.63,8.77372425]
[1736188713971,2.1,219.64,219.62,8.77372425]
[1736188714462,2.1,219.64,219.6,8.77372425]
[1736188714677,10.87372425,219.64,219.57,8.77372425]
[1736188715275,2.1,219.64,219.58,8.77372425]
[1736188715767,10.87372425,219.64,219.58,8.77372425]
[1736188716366,2.1,219.64,219.58,8.77372425]
[1736188716565,2.1,219.64,219.6,8.77372425]
[1736188716928,2.1,219.64,219.61,8.77372425]
[1736188717134,2.1,219.64,219.62,8.77372425]
[1736188717564,2.1,219.64,219.61,8.77372425]
[1736188717950,2.1,219.64,219.62,8.77372425]
[1736188718351,2.1,219.64,219.6,8.77372425]
[1736188718570,2.1,219.64,219.58,8.77372425]
[1736188718957,2.1,219.64,219.6,8.77372425]
[1736188719153,2.1,219.64,219.54,31.3874]
[1736188719154,2.1,219.64,219.62,8.77372425]
[1736188719464,2.1,219.65,219.63,8.77372425]
[1736188719882,2.1,219.65,219.55,0.12549]
[1736188720369,2.1,219.65,219.6,8.77372425]
[1736188721561,2.1,219.65,219.59,8.77372425]
[1736188722269,2.1,219.65,219.6,8.77372425]
[1736188722480,2.1,219.65,219.61,8.77372425]
[1736188722767,2.1,219.65,219.6,8.77372425]
[1736188723572,2.1,219.65,219.59,8.77372425]
[1736188723976,8.77372425,219.64,219.57,8.77372425]
[1736188725172,10.87372425,219.65,219.58,8.77372425]
[1736188725474,10.87372425,219.65,219.59,8.77372425]
[1736188725681,2.1,219.65,219.59,8.77372425]
[1736188725983,2.1,219.65,219.61,8.77372425]
[1736188728855,2.1,219.65,219.6,8.77372425]
[1736188729184,2.1,219.65,219.59,8.77372425]
[1736188730979,2.1,219.65,219.61,8.77372425]
[1736188731654,8.77372425,219.71,219.64,8.77372425]
[1736188731855,2.1,219.7,219.64,8.77372425]
[1736188732074,2.1,219.7,219.65,8.77372425]
[1736188732578,2.1,219.69,219.65,8.77372425]
[1736188733101,2.1,219.69,219.64,8.77372425]
[1736188736465,2.1,219.69,219.62,8.77372425]
[1736188736466,10.87372425,219.69,219.62,8.77372425]
[1736188737589,10.87372425,219.69,219.61,8.77372425]
[1736188737590,8.77372425,219.68,219.61,8.77372425]
[1736188737799,8.77372425,219.67,219.6,10.36242425]
[1736188738297,2.1,219.69,219.61,8.77372425]
[1736188738485,8.77372425,219.68,219.62,8.77372425]
[1736188738690,8.77372425,219.68,219.61,8.77372425]
[1736188740395,8.77372425,219.67,219.61,8.77372425]
[1736188740568,8.77372425,219.67,219.59,20.0]
[1736188740767,8.77372425,219.67,219.61,8.77372425]
[1736188740998,23.776884,219.68,219.62,8.77372425]
[1736188741369,32.55060825,219.68,219.61,8.77372425]
[1736188742299,8.77372425,219.67,219.6,8.77372425]
[1736188742481,8.77372425,219.65,219.59,28.77372425]
[1736188742778,8.77372425,219.66,219.59,28.77372425]
[1736188744101,8.77372425,219.65,219.56,11.3863]
[1736188744278,8.77372425,219.63,219.56,8.77372425]
[1736188744976,8.77372425,219.61,219.55,8.77372425]
[1736188745174,10.87372425,219.61,219.55,8.77372425]
[1736188745397,10.87372425,219.61,219.51,6.5874]
[1736188745603,8.77372425,219.6,219.53,8.77372425]
[1736188745799,8.77372425,219.6,219.54,8.77372425]
[1736188745972,10.87372425,219.61,219.55,8.77372425]
[1736188746603,2.1,219.61,219.56,8.77372425]
[1736188747204,2.1,219.61,219.57,8.77372425]
[1736188747407,2.1,219.61,219.56,8.77372425]
[1736188750206,2.1,219.61,219.55,20.0]
[1736188750509,8.77372425,219.61,219.55,8.77372425]
[1736188750800,2.1,219.6,219.55,8.77372425]
[1736188751003,2.1,219.6,219.57,8.77372425]
[1736188751909,2.1,219.6,219.58,8.77372425]
[1736188752119,2.1,219.6,219.57,8.77372425]
[1736188752698,8.77372425,219.64,219.57,8.77372425]
[1736188753000,2.1,219.63,219.57,8.77372425]
[1736188758316,10.87372425,219.63,219.57,8.77372425]
[1736188761427,2.1,219.63,219.58,8.77372425]
[1736188761623,2.1,219.63,219.59,8.77372425]
[1736188761791,8.77372425,219.66,219.6,8.77372425]
[1736188762102,2.1,219.65,219.61,8.77372425]
[1736188762488,2.1,219.64,219.62,8.77372425]
[1736188762721,14.14202814,219.71,219.56,35.094897]
[1736188762722,8.77372425,219.69,219.63,8.77372425]
[1736188762921,2.1,219.68,219.63,8.77372425]
[1736188763233,30.87372425,219.68,219.62,8.77372425]
[1736188764321,30.87372425,219.68,219.61,8.77372425]
[1736188764718,8.77372425,219.67,219.61,8.77372425]
[1736188765299,8.77372425,219.66,219.6,8.77372425]
[1736188766132,2.1,219.65,219.6,8.77372425]
[1736188766304,10.87372425,219.65,219.59,8.77372425]
[1736188766643,8.77372425,219.63,219.56,8.77372425]
[1736188768200,8.77372425,219.61,219.53,6.3611]
[1736188768406,8.77372425,219.61,219.55,8.77372425]
[1736188768709,8.77372425,219.61,219.54,8.77372425]
[1736188770735,8.77372425,219.61,219.55,8.77372425]
[1736188772130,8.77372425,219.61,219.54,8.77372425]
[1736188773148,8.77372425,219.61,219.52,21.5432]
[1736188773435,8.77372425,219.61,219.54,8.77372425]
[1736188776221,8.77372425,219.61,219.55,8.77372425]
[1736188776423,8.77372425,219.62,219.56,8.77372425]
[1736188776749,23.776884,219.62,219.57,8.77372425]
[1736188778244,20.0,219.66,219.59,8.77372425]
[1736188778448,2.1,219.61,219.59,8.77372425]
[1736188778630,2.1,219.6,219.59,8.77372425]
[1736188779349,24.358759,219.71,219.59,8.77372425]
[1736188779350,22.91575239,219.71,219.59,8.77372425]
[1736188779538,20.0,219.68,219.63,8.77372425]
[1736188779729,23.776884,219.69,219.63,8.77372425]
[1736188780128,8.77372425,219.69,219.63,8.77372425]
[1736188780331,6.9983,219.71,219.63,8.77372425]
[1736188780332,2.1,219.68,219.63,8.77372425]
[1736188780818,22.1,219.68,219.62,8.77372425]
[1736188781218,30.87372425,219.68,219.62,8.77372425]
[1736188783249,23.776884,219.67,219.56,6.1096]
[1736188783543,23.776884,219.67,219.6,8.77372425]
[1736188783544,32.55060825,219.67,219.6,8.77372425]
[1736188783749,32.55060825,219.67,219.61,8.77372425]
[1736188784247,8.77372425,219.66,219.6,8.77372425]
[1736188785338,8.77372425,219.66,219.59,8.77372425]
[1736188785539,8.77372425,219.66,219.6,8.77372425]
[1736188787949,30.87372425,219.68,219.61,8.77372425]
[1736188788138,30.87372425,219.68,219.62,8.77372425]
[1736188789655,28.77372425,219.68,219.62,8.77372425]
[1736188789838,2.1,219.67,219.62,8.77372425]
[1736188791254,2.1,219.67,219.61,8.77372425]
[1736188791755,10.87372425,219.67,219.56,6.1096]
[1736188791974,2.1,219.67,219.61,8.77372425]
[1736188793084,2.1,219.67,219.6,8.77372425]
[1736188793856,2.1,219.67,219.56,6.1096]
[1736188794040,10.87372425,219.67,219.56,6.1096]
[1736188794362,20.0,219.68,219.62,8.77372425]
[1736188794568,2.1,219.66,219.61,8.77372425]
[1736188794855,2.1,219.66,219.56,6.1096]
[1736188795162,10.87372425,219.66,219.59,8.77372425]
[1736188798869,2.1,219.66,219.59,8.77372425]
[1736188799245,2.1,219.66,219.6,8.77372425]
[1736188799972,10.87372425,219.66,219.59,8.77372425]
[1736188801272,2.1,219.66,219.6,8.77372425]
[1736188801480,10.87372425,219.66,219.59,8.77372425]
[1736188802068,23.776884,219.65,219.59,8.77372425]
[1736188802360,10.87372425,219.66,219.52,12.9316]
[1736188802361,8.77372425,219.6,219.52,12.9316]
[1736188802569,8.77372425,219.6,219.53,8.77372425]
[1736188804003,8.77372425,219.6,219.53,20.0]
[1736188804477,8.77372425,219.6,219.53,8.77372425]
[1736188804649,8.77372425,219.61,219.54,8.77372425]
[1736188804850,23.776884,219.65,219.56,8.77372425]
[1736188805153,2.1,219.64,219.6,8.77372425]
[1736188805356,2.1,219.64,219.61,8.77372425]
[1736188806572,2.1,219.64,219.6,8.77372425]
[1736188807886,2.1,219.64,219.59,8.77372425]
[1736188808896,2.1,219.64,219.6,8.77372425]
[1736188810185,2.1,219.64,219.57,20.0]
[1736188810383,2.1,219.64,219.6,8.77372425]
[1736188811513,2.1,219.64,219.61,8.77372425]
[1736188811990,2.1,219.64,219.6,8.77372425]
[1736188813762,8.77372425,219.63,219.52,1.5432]
[1736188813962,8.77372425,219.61,219.55,8.77372425]
[1736188814267,32.55060825,219.63,219.56,8.77372425]
[1736188814892,23.776884,219.63,219.57,8.77372425]
[1736188815078,2.1,219.64,219.59,8.77372425]
[1736188817612,10.87372425,219.64,219.57,8.77372425]
[1736188818225,32.55060825,219.63,219.53,20.0]
[1736188818393,8.77372425,219.62,219.56,8.77372425]
[1736188818791,8.77372425,219.59,219.52,1.5432]
[1736188818993,8.77372425,219.58,219.52,8.77372425]
[1736188819617,8.77372425,219.56,219.5,8.77372425]
[1736188819910,2.1,219.55,219.5,8.77372425]
[1736188820621,8.77372425,219.53,219.47,1.5318]
[1736188820920,8.77372425,219.53,219.46,8.77372425]
[1736188821782,8.77372425,219.53,219.47,8.77372425]
[1736188821992,32.55060825,219.54,219.48,8.77372425]
[1736188822498,8.77372425,219.53,219.47,8.77372425]
[1736188822900,8.77372425,219.52,219.42,1.6623]
[1736188823079,8.77372425,219.5,219.44,8.77372425]
[1736188826908,8.77372425,219.49,219.43,8.77372425]
[1736188827808,8.77372425,219.49,219.42,10.43602425]
[1736188829714,8.77372425,219.48,219.42,8.77372425]
[1736188830024,2.1,219.47,219.42,8.77372425]
[1736188830339,2.1,219.47,219.37,23.05917673]
[1736188830340,2.1,219.47,219.45,8.77372425]
[1736188831018,2.1,219.47,219.44,8.77372425]
[1736188832032,2.1,219.47,219.38,23.776884]
[1736188832243,2.1,219.47,219.45,8.77372425]
[1736188832740,2.1,219.47,219.46,8.77372425]
[1736188832905,2.1,219.49,219.46,8.77372425]
[1736188833217,2.1,219.49,219.48,8.77372425]
[1736188834250,12.3606,219.6,219.48,8.77372425]
[1736188834550,10.87372425,219.59,219.53,8.77372425]
[1736188834902,0.9759,219.6,219.54,8.77372425]
[1736188835109,11.3827,219.64,219.55,8.77372425]
[1736188835110,2.1,219.59,219.55,8.77372425]
[1736188835935,2.1,219.59,219.54,8.77372425]
[1736188836145,2.1,219.59,219.53,8.77372425]
[1736188836313,10.87372425,219.59,219.52,8.77372425]
[1736188836637,8.77372425,219.56,219.46,11.391]
[1736188836940,8.77372425,219.55,219.49,8.77372425]
[1736188837613,8.77372425,219.54,219.47,8.77372425]
[1736188839055,23.776884,219.58,219.48,8.77372425]
[1736188839223,8.77372425,219.55,219.48,8.77372425]
[1736188839635,8.77372425,219.54,219.47,28.77372425]
[1736188840040,8.77372425,219.55,219.48,8.77372425]
[1736188840340,8.77372425,219.55,219.49,8.77372425]
[1736188840514,8.77372425,219.56,219.5,8.77372425]
[1736188841142,8.77372425,219.56,219.47,20.0]
[1736188841143,8.77372425,219.55,219.48,8.77372425]
[1736188841440,8.77372425,219.55,219.47,20.0]
[1736188841441,8.77372425,219.51,219.43,1.6567]
[1736188841742,2.1,219.5,219.46,8.77372425]
[1736188843641,2.1,219.5,219.48,8.77372425]
[1736188844341,2.1,219.5,219.47,8.77372425]
[1736188844552,2.1,219.5,219.46,8.77372425]
[1736188845530,2.1,219.5,219.47,8.77372425]
[1736188845727,2.1,219.5,219.43,1.6567]
[1736188845950,2.1,219.5,219.46,8.77372425]
[1736188847062,2.1,219.5,219.44,20.0]
[1736188847227,2.1,219.5,219.45,8.77372425]
[1736188847864,2.1,219.5,219.46,8.77372425]
[1736188849034,2.1,219.5,219.47,8.77372425]
[1736188849455,2.1,219.5,219.44,20.0]
[1736188849657,2.1,219.5,219.46,8.77372425]
[1736188851062,2.1,219.5,219.44,20.0]
[1736188851242,2.1,219.5,219.46,8.77372425]
[1736188852156,0.9759,219.56,219.43,1.6567]
[1736188852157,0.9759,219.56,219.48,8.77372425]
[1736188852352,2.1,219.55,219.49,8.77372425]
[1736188852941,10.87372425,219.55,219.49,8.77372425]
[1736188854377,8.77372425,219.53,219.46,28.77372425]
[1736188856345,8.77372425,219.54,219.47,8.77372425]
[1736188857290,8.77372425,219.53,219.46,20.0]
[1736188857587,8.77372425,219.51,219.46,20.0]
[1736188857739,8.77372425,219.53,219.46,28.77372425]
[1736188857944,2.1,219.55,219.49,8.77372425]
[1736188858243,8.77372425,219.57,219.5,8.77372425]
[1736188858446,0.9759,219.61,219.53,8.77372425]
[1736188858447,2.1,219.56,219.53,8.77372425]
[1736188858644,8.77372425,219.6,219.53,8.77372425]
[1736188858844,2.1,219.59,219.53,8.77372425]
[1736188859166,2.1,219.58,219.56,8.77372425]
[1736188859751,14.95592425,219.62,219.56,8.77372425]
[1736188859952,2.1,219.58,219.56,8.77372425]
[1736188860272,2.1,219.58,219.55,8.77372425]
[1736188861061,8.77372425,219.57,219.49,11.3896]
[1736188861271,8.77372425,219.57,219.51,8.77372425]
[1736188861589,2.1,219.58,219.52,8.77372425]
[1736188862068,2.1,219.58,219.53,8.77372425]
[1736188862284,2.1,219.58,219.52,8.77372425]
[1736188863280,2.1,219.58,219.55,8.77372425]
[1736188866090,2.1,219.59,219.57,8.77372425]
[1736188866461,2.1,219.59,219.52,23.776884]
[1736188866676,2.1,219.59,219.56,8.77372425]
[1736188866886,2.1,219.59,219.55,8.77372425]
[1736188867182,2.1,219.59,219.52,23.776884]
[1736188867183,2.1,219.59,219.54,8.77372425]
[1736188867999,2.1,219.59,219.53,8.77372425]
[1736188868204,8.77372425,219.57,219.51,8.77372425]
[1736188868381,8.77372425,219.56,219.5,8.77372425]
[1736188868705,8.77372425,219.56,219.49,8.77372425]
[1736188869203,8.77372425,219.56,219.5,8.77372425]
[1736188869371,8.77372425,219.57,219.51,8.77372425]
[1736188870380,8.77372425,219.57,219.5,8.77372425]
[1736188871704,8.77372425,219.56,219.45,7.9087]
[1736188871877,8.77372425,219.51,219.45,1.5317]
[1736188872082,8.77372425,219.51,219.45,10.30542425]
[1736188872083,10.87372425,219.51,219.45,10.30542425]
[1736188872390,10.87372425,219.51,219.45,1.5317]
[1736188872608,10.87372425,219.51,219.45,10.30542425]
[1736188873276,2.1,219.51,219.4,19.56777673]
[1736188873587,8.77372425,219.48,219.42,8.77372425]
[1736188873767,2.1,219.51,219.47,8.77372425]
[1736188873969,2.1,219.51,219.5,8.77372425]
[1736188882502,2.1,219.51,219.47,30.30702425]
[1736188883928,2.1,219.51,219.48,8.77372425]
[1736188885124,2.1,219.51,219.49,8.77372425]
[1736188886021,2.1,219.51,219.48,8.77372425]
[1736188887429,2.1,219.51,219.49,8.77372425]
[1736188888440,2.1,219.51,219.48,8.77372425]
[1736188889634,15.27942425,219.6,219.5,8.77372425]
[1736188889931,8.11962814,219.64,219.57,8.77372425]
[1736188890119,2.1,219.63,219.58,8.77372425]
[1736188890319,9.74962425,219.64,219.58,8.77372425]
[1736188890523,2.1,219.62,219.58,8.77372425]
[1736188891439,2.1,219.62,219.57,8.77372425]
[1736188892816,2.1,219.62,219.56,8.77372425]
[1736188894947,2.1,219.61,219.56,8.77372425]
[1736188895831,2.1,219.61,219.51,11.3889]
[1736188896030,2.1,219.61,219.56,8.77372425]
[1736188896344,2.1,219.61,219.52,8.77372425]
[1736188896345,8.77372425,219.58,219.52,8.77372425]
[1736188896728,2.1,219.61,219.53,8.77372425]
[1736188896729,22.1,219.61,219.53,8.77372425]
[1736188897242,8.77372425,219.6,219.54,8.77372425]
[1736188899162,2.1,219.61,219.55,8.77372425]
[1736188899319,10.87372425,219.61,219.55,8.77372425]
[1736188899932,2.1,219.61,219.55,8.77372425]
[1736188900652,10.87372425,219.61,219.49,1.5021]
[1736188900826,8.77372425,219.59,219.52,8.77372425]
[1736188901751,2.1,219.58,219.54,8.77372425]
[1736188905757,2.1,219.57,219.54,8.77372425]
[1736188906434,2.1,219.57,219.55,8.77372425]
[1736188906653,2.1,219.57,219.54,8.77372425]
[1736188907559,2.1,219.57,219.55,8.77372425]
[1736188907760,2.1,219.57,219.56,8.77372425]
[1736188908661,6.27,219.66,219.56,8.77372425]
[1736188908870,2.1,219.6,219.59,8.77372425]
[1736188910045,15.04372425,219.66,219.59,8.77372425]
[1736188910256,10.87372425,219.65,219.58,8.77372425]
[1736188911669,8.77372425,219.64,219.58,8.77372425]
[1736188912059,10.87372425,219.65,219.58,8.77372425]
[1736188913138,8.77372425,219.64,219.58,8.77372425]
[1736188913360,2.1,219.63,219.58,8.77372425]
[1736188913964,2.1,219.63,219.57,8.77372425]
[1736188914663,8.77372425,219.64,219.57,8.77372425]
[1736188914875,2.1,219.62,219.57,8.77372425]
[1736188918370,2.1,219.62,219.58,8.77372425]
[1736188918673,2.1,219.62,219.59,8.77372425]
[1736188919055,2.1,219.62,219.58,8.77372425]
[1736188920170,2.1,219.62,219.57,8.77372425]
[1736188920372,2.1,219.62,219.56,8.77372425]
[1736188920586,8.77372425,219.61,219.54,8.77372425]
[1736188921361,8.77372425,219.59,219.52,8.77372425]
[1736188922389,23.776884,219.61,219.49,1.5021]
[1736188922561,8.77372425,219.53,219.46,8.77372425]
[1736188922763,8.77372425,219.5,219.43,1.5863]
[1736188922978,2.1,219.49,219.45,8.77372425]
[1736188923358,2.1,219.49,219.46,8.77372425]
[1736188923555,2.1,219.49,219.48,8.77372425]
[1736188923787,2.1,219.49,219.47,8.77372425]
[1736188924287,2.1,219.49,219.48,8.77372425]
[1736188924459,2.1,219.49,219.47,8.77372425]
[1736188924856,2.1,219.49,219.46,8.77372425]
[1736188925064,2.1,219.49,219.45,8.77372425]
[1736188925682,10.87372425,219.49,219.38,1.70929]
[1736188925879,12.18026949,219.48,219.42,8.77372425]
[1736188926080,3.40654524,219.48,219.42,8.77372425]
[1736188926285,3.40654524,219.47,219.43,8.77372425]
[1736188926467,3.40654524,219.47,219.46,8.77372425]
[1736188926667,2.1,219.49,219.46,8.77372425]
[1736188926865,2.1,219.49,219.42,20.0]
[1736188927066,2.1,219.49,219.46,8.77372425]
[1736188927281,2.1,219.49,219.47,8.77372425]
[1736188927665,2.1,219.49,219.46,8.77372425]
[1736188929486,2.1,219.49,219.47,8.77372425]
[1736188929690,2.1,219.49,219.45,8.77372425]
[1736188930054,2.1,219.49,219.42,20.0]
[1736188930055,2.1,219.49,219.44,8.77372425]
[1736188930279,8.77372425,219.47,219.41,8.77372425]
[1736188930467,8.77372425,219.46,219.4,8.77372425]
[1736188932293,8.77372425,219.47,219.4,8.77372425]
[1736188932471,8.77372425,219.45,219.38,1.5838]
[1736188932674,8.77372425,219.42,219.36,8.77372425]
[1736188932854,2.1,219.41,219.36,8.77372425]
[1736188933262,2.1,219.41,219.37,8.77372425]
[1736188933767,2.1,219.41,219.39,8.77372425]
[1736188934295,2.1,219.41,219.38,8.77372425]
[1736188934997,2.1,219.41,219.37,8.77372425]
[1736188935164,2.1,219.41,219.35,20.0]
[1736188935372,2.1,219.41,219.36,8.77372425]
[1736188935778,2.1,219.41,219.37,8.77372425]
[1736188936376,2.1,219.41,219.36,8.77372425]
[1736188938009,2.1,219.41,219.37,8.77372425]
[1736188938298,2.1,219.41,219.39,8.77372425]
[1736188938872,2.1,219.41,219.38,8.77372425]
[1736188941000,2.1,219.41,219.37,8.77372425]
[1736188942592,2.1,219.41,219.36,8.77372425]
[1736188944391,2.1,219.41,219.35,8.77372425]
[1736188945409,8.77372425,219.4,219.34,8.77372425]
[1736188945706,10.87372425,219.41,219.35,8.77372425]
[1736188945901,2.1,219.41,219.36,8.77372425]
[1736188946914,2.1,219.4,219.38,8.77372425]
[1736188947208,2.1,219.39,219.36,8.77372425]
[1736188947412,2.1,219.38,219.36,8.77372425]
[1736188947611,2.1,219.38,219.32,20.0]
[1736188947796,2.1,219.38,219.34,8.77372425]
[1736188948505,2.1,219.38,219.31,20.0]
[1736188948809,2.1,219.38,219.32,8.77372425]
[1736188949186,2.1,219.38,219.33,8.77372425]
[1736188949510,2.1,219.38,219.34,8.77372425]
[1736188951751,2.1,219.38,219.36,8.77372425]
[1736188952038,2.1,219.38,219.37,8.77372425]
[1736188952819,2.1,219.38,219.34,20.0]
[1736188953133,2.1,219.38,219.37,8.77372425]
[1736188954598,2.1,219.38,219.35,20.0]
[1736188954805,2.1,219.38,219.37,8.77372425]
[1736188955394,2.1,219.38,219.36,8.77372425]
[1736188955717,2.1,219.38,219.31,20.0]
[1736188955918,2.1,219.38,219.34,8.77372425]
[1736188956110,2.1,219.38,219.33,8.77372425]
[1736188956311,2.1,219.38,219.32,8.77372425]
[1736188956505,2.1,219.38,219.28,11.4006]
[1736188956506,2.1,219.38,219.33,8.77372425]
[1736188957020,2.1,219.38,219.32,8.77372425]
[1736188957804,2.1,219.38,219.33,8.77372425]
[1736188958823,2.1,219.38,219.34,8.77372425]
[1736188959216,2.1,219.37,219.31,20.0]
[1736188959513,2.1,219.38,219.31,20.0]
[1736188959895,2.1,219.4,219.37,8.77372425]
[1736188960096,2.1,219.4,219.32,20.0]
[1736188960411,2.1,219.4,219.37,8.77372425]
[1736188960587,2.1,219.4,219.38,8.77372425]
[1736188961021,2.1,219.4,219.37,8.77372425]
[1736188961524,2.1,219.4,219.38,8.77372425]
[1736188962004,8.77372425,219.44,219.37,8.77372425]
[1736188962209,2.1,219.43,219.37,8.77372425]
[1736188963123,10.87372425,219.43,219.36,8.77372425]
[1736188963337,8.77372425,219.42,219.32,31.3986]
[1736188963634,8.77372425,219.41,219.35,8.77372425]
[1736188963794,12.16674457,219.41,219.35,8.77372425]
[1736188964124,3.39302032,219.4,219.35,8.77372425]
[1736188964514,3.39302032,219.4,219.34,8.77372425]
[1736188964709,8.77372425,219.41,219.34,8.77372425]
[1736188964917,8.77372425,219.38,219.32,8.77372425]
[1736188965660,3.39537738,219.37,219.32,8.77372425]
[1736188966260,3.39537738,219.36,219.32,8.77372425]
[1736188966412,2.1,219.35,219.32,8.77372425]
[1736188966840,2.1,219.35,219.33,8.77372425]
[1736188967510,2.1,219.35,219.29,20.0]
[1736188967511,2.1,219.35,219.31,8.77372425]
[1736188967715,2.1,219.35,219.3,8.77372425]
[1736188967912,3.39910896,219.34,219.3,8.77372425]
[1736188968638,3.39910896,219.33,219.31,8.77372425]
[1736188968820,3.39910896,219.33,219.29,20.0]
[1736188968821,3.39910896,219.33,219.32,8.77372425]